[Event "1st Bella Italia International 2022"]
[Site "Lignano"]
[Date "2022.08.19"]
[Round "4.18"]
[White "Cassi, Elisa"]
[Black "Heredia Serrano, Carla"]
[Result "1/2-1/2"]
[ECO "B15"]
[WhiteElo "1922"]
[BlackElo "2090"]
[Annotator "NA RC"]
[PlyCount "113"]
[EventDate "2022.08.18"]
[EventCountry "ITA"]
[SourceTitle "playchess.com"]
[Source "ChessBase"]
[SourceQuality "1"]
[TimeControl "5400+30"]

1. e4 {[%emt 0:00:02]} c6 {[%emt 0:06:27]} 2. d4 {[%emt 0:00:06]} d5 {[%emt 0:00:04]} 3. Nd2 {[%emt 0:00:04]} dxe4 {[%emt 0:00:04]} 4. Nxe4 {[%emt 0:00:03]} Nf6 {[%emt 0:00:09]} 5. Nxf6+ {[%emt 0:00:06]} exf6 {[%emt 0:00:04]} 6. c3 {[%emt 0:00:05]} Bd6 {[%emt 0:00:19]} 7. Bd3 {[%emt 0:00:05]} O-O {[%emt 0:00:06]} 8. Ne2 {[%emt 0:00:04]} Re8 {[%emt 0:00:07]} 9. O-O {[%emt 0:00:06]} Nd7 {[%emt 0:00:14]} 10. Ng3 {[%emt 0:00:07]} g6 {[%emt 0:00:58]} 11. Bh6 {[%emt 0:00:22]} Nf8 {[%emt 0:03:01]} 12. Ne4 {[%emt 0:16:05]} Be7 {[%emt 0:01:00]} 13. h4 {[%emt 0:02:08]} Bf5 {[%emt 0:10:17]} 14. Qf3 {[%emt 0:09:35]} Bxe4 {[%emt 0:04:46]} 15. Bxe4 {[%emt 0:04:41]} f5 {[%emt 0:02:34]} 16. Bxf5 {[%emt 0:08:51]} gxf5 {[%emt 0:02:33]} 17. Qg3+ {[%emt 0:01:25]} Ng6 {[%emt 0:00:12]} 18. h5 {[%emt 0:00:08]} Bd6 {[%emt 0:14:53]} 19. f4 {[%emt 0:06:06]} Qh4 {[%emt 0:04:01]} 20. Qxh4 {[%emt 0:01:02]} Nxh4 {[%emt 0:00:05]} 21. Bg5 {[%emt 0:17:02]} Ng6 {[%emt 0:20:48]} 22. hxg6 {[%emt 0:00:06]} hxg6 {[%emt 0:00:23]} 23. Bf6 {[%emt 0:09:57]} Re6 {[%emt 0:09:49]} 24. Be5 {[%emt 0:01:20]} Bf8 {[%emt 0:07:47]} 25. c4 {[%emt 0:07:27]} f6 {[%emt 0:00:08]} 26. Bc7 {[%emt 0:01:07]} Re7 {[%emt 0:08:22]} 27. Ba5 {[%emt 0:01:19]} b6 {[%emt 0:01:33]} 28. Bc3 {[%emt 0:00:24]} Kf7 {[%emt 0:00:45]} 29. Kf2 {[%emt 0:00:30]} Re4 {[%emt 0:00:18]} 30. g3 {[%emt 0:02:05]} Rae8 {[%emt 0:00:29]} 31. Rfe1 {[%emt 0:01:07]} g5 {[%emt 0:01:03]} 32. Rxe4 {[%emt 0:01:20]} Rxe4 {[%emt 0:00:03]} 33. Re1 {[%emt 0:07:44]} gxf4 {[%emt 0:00:05]} 34. Rxe4 {[%emt 0:00:21]} fxe4 {[%emt 0:00:07]} 35. gxf4 {[%emt 0:00:05]} Ke6 {[%emt 0:00:23]} 36. d5+ {[%emt 0:00:56]} cxd5 {[%emt 0:00:08]} 37. cxd5+ {[%emt 0:00:03]} Kxd5 {[%emt 0:03:44]} 38. Bxf6 {[%emt 0:00:06]} Bc5+ {[%emt 0:00:16]} 39. Ke2 {[%emt 0:00:13]} Bd6 {[%emt 0:00:58]} 40. Ke3 {[%emt 0:01:23]} Bc5+ {[%emt 0:00:03]} 41. Ke2 {[%emt 0:00:04]} Ke6 {[%emt 0:00:16]} 42. Be5 {[%emt 0:02:24]} b5 {[%emt 0:00:30]} 43. Kd2 {[%emt 0:01:16]} a5 {[%emt 0:00:25]} 44. b3 {[%emt 0:00:18]} Kd5 {[%emt 0:00:49]} 45. a4 {[%emt 0:00:49]} bxa4 {[%emt 0:00:22]} 46. bxa4 {[%emt 0:00:05]} Bb4+ {[%emt 0:01:17]} 47. Ke2 {[%emt 0:00:32]} Ke6 {[%emt 0:00:33]} 48. Ke3 {[%emt 0:01:16]} Kd5 {[%emt 0:00:23]} 49. Bc7 {[%emt 0:01:30]} Bc5+ {[%emt 0:00:17]} 50. Ke2 {[%emt 0:00:06]} Bb4 {[%emt 0:00:11]} 51. Ke3 {[%emt 0:00:24]} Bc5+ {[%emt 0:00:55]} 52. Ke2 {[%emt 0:00:53]} Bb4 {[%emt 0:00:14]} 53. f5 {[%emt 0:00:17]} Bc3 {[%emt 0:00:21]} 54. Bd8 {[%emt 0:00:32]} Kc4 {[%emt 0:01:02]} 55. f6 {[%emt 0:00:15]} Bxf6 {[%emt 0:00:12]} 56. Bxf6 {[%emt 0:00:05]} Kb4 {[%emt 0:00:08]} 57. Ke3 {[%emt 0:00:08]} 1/2-1/2

[Event "1st Bella Italia International 2022"]
[Site "Lignano"]
[Date "2022.08.19"]
[Round "4.19"]
[White "Brotto, Alessandro"]
[Black "Giraldi, Edoardo"]
[Result "1/2-1/2"]
[ECO "D02"]
[WhiteElo "2027"]
[BlackElo "1909"]
[Annotator "NA RC"]
[PlyCount "23"]
[EventDate "2022.08.18"]
[EventCountry "ITA"]
[SourceTitle "playchess.com"]
[Source "ChessBase"]
[SourceQuality "1"]
[TimeControl "5400+30"]

1. Nf3 {[%emt 0:00:08]} Nf6 {[%emt 0:05:30]} 2. d4 {[%emt 0:00:16]} e6 {[%emt 0:01:11]} 3. Bf4 {[%emt 0:00:48]} d5 {[%emt 0:00:14]} 4. e3 {[%emt 0:00:54]} Bd6 {[%emt 0:01:23]} 5. Bg3 {[%emt 0:03:00]} O-O {[%emt 0:01:53]} 6. Nbd2 {[%emt 0:00:15]} c5 {[%emt 0:01:07]} 7. c3 {[%emt 0:00:14]} Nc6 {[%emt 0:05:07]} 8. Bd3 {[%emt 0:00:18]} b6 {[%emt 0:00:13]} 9. Bh4 {[%emt 0:00:42]} Be7 {[%emt 0:11:11]} 10. Bg3 {[%emt 0:00:08]} Bd6 {[%emt 0:00:08]} 11. Bh4 {[%emt 0:00:08]} Be7 {[%emt 0:00:05]} 12. Bg3 {[%emt 0:00:24]} 1/2-1/2

[Event "1st Bella Italia International 2022"]
[Site "Lignano"]
[Date "2022.08.19"]
[Round "4.20"]
[White "Arana Garate, Jon"]
[Black "Marson, Roy"]
[Result "1/2-1/2"]
[ECO "B07"]
[WhiteElo "1933"]
[BlackElo "1959"]
[Annotator "NA RC"]
[PlyCount "99"]
[EventDate "2022.08.18"]
[EventCountry "ITA"]
[SourceTitle "playchess.com"]
[Source "ChessBase"]
[SourceQuality "1"]
[TimeControl "5400+30"]

1. d4 {[%emt 0:00:03]} Nf6 {[%emt 0:00:16]} 2. Bf4 {[%emt 0:00:10]} g6 {[%emt 0:00:23]} 3. Nc3 {[%emt 0:00:37]} Bg7 {[%emt 0:01:43]} 4. e4 {[%emt 0:02:35]} d6 {[%emt 0:00:13]} 5. Be2 {[%emt 0:02:32]} c6 {[%emt 0:03:17]} 6. Qd2 {[%emt 0:03:00]} Nbd7 {[%emt 0:02:19]} 7. Nf3 {[%emt 0:01:47]} b5 {[%emt 0:07:26]} 8. e5 {[%emt 0:17:21]} dxe5 {[%emt 0:07:22]} 9. dxe5 {[%emt 0:09:56]} Ng4 {[%emt 0:14:00]} 10. e6 {[%emt 0:06:16]} Nde5 {[%emt 0:17:21]} 11. Qxd8+ {[%emt 0:19:44]} Kxd8 {[%emt 0:00:09]} 12. Rd1+ {[%emt 0:00:44]} Ke8 {[%emt 0:01:27]} 13. h3 {[%emt 0:00:38]} Bxe6 {[%emt 0:07:30]} 14. hxg4 {[%emt 0:00:22]} Nxg4 {[%emt 0:01:20]} 15. Ng5 {[%emt 0:06:21]} Bf5 {[%emt 0:05:08]} 16. Bf3 {[%emt 0:08:48]} Rc8 {[%emt 0:01:54]} 17. Be4 {[%emt 0:05:41]} Bxe4 {[%emt 0:06:29]} 18. Ngxe4 {[%emt 0:00:04]} Nf6 {[%emt 0:01:01]} 19. Be5 {[%emt 0:01:46]} Nxe4 {[%emt 0:06:06]} 20. Bxg7 {[%emt 0:00:13]} Nxc3 {[%emt 0:00:08]} 21. Bxc3 {[%emt 0:00:30]} f6 {[%emt 0:00:30]} 22. Rh3 {[%emt 0:01:20]} c5 {[%emt 0:02:25]} 23. Re3 {[%emt 0:02:35]} Rf8 {[%emt 0:01:05]} 24. Ba5 {[%emt 0:00:29]} c4 {[%emt 0:02:29]} 25. Re6 {[%emt 0:02:43]} Rb8 {[%emt 0:00:51]} 26. Ra6 {[%emt 0:04:36]} Rb7 {[%emt 0:00:19]} 27. Rd8+ {[%emt 0:00:47]} Kf7 {[%emt 0:00:09]} 28. Rxf8+ {[%emt 0:00:03]} Kxf8 {[%emt 0:00:08]} 29. Bb4 {[%emt 0:00:33]} Kf7 {[%emt 0:00:16]} 30. Bc5 {[%emt 0:00:54]} Rc7 {[%emt 0:02:46]} 31. Bd4 {[%emt 0:00:17]} Rd7 {[%emt 0:02:06]} 32. c3 {[%emt 0:01:18]} e5 {[%emt 0:01:33]} 33. Rxa7 {[%emt 0:00:12]} Rxa7 {[%emt 0:00:05]} 34. Bxa7 {[%emt 0:00:05]} Ke6 {[%emt 0:00:12]} 35. Ke2 {[%emt 0:00:15]} Kd5 {[%emt 0:01:06]} 36. Ke3 {[%emt 0:00:55]} f5 {[%emt 0:00:55]} 37. Bb6 {[%emt 0:01:58]} g5 {[%emt 0:01:04]} 38. g4 {[%emt 0:00:43]} fxg4 {[%emt 0:01:48]} 39. Bd8 {[%emt 0:00:09]} h6 {[%emt 0:00:07]} 40. Be7 {[%emt 0:00:42]} Ke6 {[%emt 0:03:37]} 41. Bxg5 {[%emt 0:00:43]} hxg5 {[%emt 0:00:25]} 42. Ke4 {[%emt 0:00:12]} Kf6 {[%emt 0:00:47]} 43. b3 {[%emt 0:00:02]} b4 {[%emt 0:00:22]} 44. bxc4 {[%emt 0:00:09]} bxc3 {[%emt 0:00:13]} 45. Kd3 {[%emt 0:00:02]} e4+ {[%emt 0:00:17]} 46. Kxc3 {[%emt 0:01:39]} e3 {[%emt 0:00:37]} 47. Kd3 {[%emt 0:00:01]} exf2 {[%emt 0:00:16]} 48. Ke2 {[%emt 0:00:01]} Ke5 {[%emt 0:01:52]} 49. Kxf2 {[%emt 0:01:39]} Kd4 {[%emt 0:01:08]} 50. Ke2 {[%emt 0:01:20]} 1/2-1/2

[Event "1st Bella Italia International 2022"]
[Site "Lignano"]
[Date "2022.08.20"]
[Round "5.1"]
[White "Aaron, Deepak"]
[Black "Visakh N R"]
[Result "0-1"]
[ECO "C01"]
[WhiteElo "2221"]
[BlackElo "2503"]
[Annotator "TA"]
[PlyCount "96"]
[EventDate "2022.08.18"]
[EventCountry "ITA"]
[SourceTitle "playchess.com"]
[Source "ChessBase"]
[SourceQuality "1"]
[TimeControl "5400+30"]

{[%evp 11,96,-33,-31,-29,-25,-25,-33,-82,-79,-85,-73,-52,-41,-47,-53,-49,-31,-44,-42,-45,-31,-31,-28,-24,-32,-26,-27,-32,-17,-14,-15,-32,-35,-31,-39,-20,-12,-10,-5,-6,0,-9,-6,-1,0,-15,-9,-52,-50,-80,-80,-87,-70,-124,-124,-124,-124,-154,-124,-169,-166,-164,-102,-102,-102,-102,-102,-124,-117,-250,-230,-29966,-29967,-29970,-29970,-29969,-29970,-29976,-29977,-29981,-29982,-29982,-29983,-29983,-29984,-29985,-29986]} 1. c4 {[%emt 0:01:01] Knaak,R} e6 {[%emt 0:03:04]} 2. e4 {[%emt 0:00:33]} d5 {[%emt 0:02:44]} 3. exd5 {[%emt 0:03:11]} exd5 {[%emt 0:00:03]} 4. d4 {[%emt 0:00:37]} Bb4+ {[%emt 0:04:16]} 5. Nc3 {[%emt 0:00:42]} Nf6 {[%emt 0:00:05][%cal Bg8f6,Bf6d5,Bd5c3][%mdl 32]} 6. cxd5 {[%emt 0:10:12]} Nxd5 {[%emt 0:03:53]} 7. Bd2 {[%emt 0:02:24] C01: French: Exchange Variation.} O-O {[%emt 0:01:51]} 8. Bd3 {[%emt 0:04:48]} c5 {[%emt 0:05:42]} 9. dxc5 {[%emt 0:15:54]} (9. Nge2 $15) 9... Nxc3 $17 {[%emt 0:02:42]} ({Much weaker is} 9... Bxc5 10. Nge2 $11) 10. Bxc3 {[%emt 0:01:20]} Bxc3+ {[%emt 0:00:12]} 11. bxc3 {[%emt 0:00:01]} Nd7 {[%emt 0:14:35] [#]} (11... Qg5 {keeps more tension.} 12. Qf3 Nd7 13. Qg3 Qd5) 12. Ne2 $146 {[%emt 0:02:42]} ({Don't blunder} 12. Qh5 $2 g6 13. Qd5 Qe7+ 14. Be2 Re8 $19) ({Predecessor:} 12. c6 Nc5 13. Bc2 Re8+ 14. Ne2 Qe7 15. Kf1 bxc6 16. Nd4 Ne4 17. Nxc6 Ba6+ 18. Kg1 {0-1 (31) Kuijf,M (2420)-Kortschnoj,V (2575) Tilburg 1992 CBM 032 [Knaak,R]}) 12... Nxc5 {[%emt 0:02:27]} 13. Bc2 {[%emt 0:02:45]} Qxd1+ {[%emt 0:16:53]} 14. Kxd1 {[%emt 0:03:09]} Bd7 {[%emt 0:03:28]} 15. Nd4 {[%emt 0:02:12]} Ba4 {[%emt 0:00:20][%cal Oc5e4]} 16. Re1 {[%emt 0:03:25] Against Ne4} Rac8 {[%emt 0:00:14]} 17. Rb1 {[%emt 0:05:18]} Rfd8 {[%emt 0:01:27][%cal Oc5e6]} 18. Re3 {[%emt 0:08:08]} b5 {[%emt 0:00:24]} 19. Kd2 {[%emt 0:05:16]} Bxc2 {[%emt 0:00:07]} 20. Kxc2 {[%emt 0:00:07]} a6 {[%emt 0:00:04]} 21. Nf5 {[%emt 0:01:16]} Kf8 {[%emt 0:00:14]} 22. Rd1 {[%emt 0:00:32]} Rxd1 {[%emt 0:03:07]} 23. Kxd1 $15 {[%emt 0:00:02][%mdl 4096] Endgame KRN-KRN} Ne6 {[%emt 0:06:43]} 24. Rd3 {[%emt 0:06:30]} g6 {[%emt 0:01:37]} 25. Ne3 {[%emt 0:00:35]} Nc5 {[%emt 0:00:36]} 26. Rd6 {[%emt 0:00:59]} a5 {[%emt 0:00:06] Black wants to play ...Ne4.} 27. c4 {[%emt 0:05:09]} Ne4 {[%emt 0:06:19]} 28. Rd4 {[%emt 0:05:56]} Nc3+ {[%emt 0:00:07]} (28... Nxf2+ $2 29. Ke2 bxc4 30. Kxf2 $18) 29. Kc2 {[%emt 0:02:19]} (29. Kd2 $5 {[%cal Rd2c3]} b4 30. Kc2 $11) 29... Nxa2 {[%emt 0:21:40]} 30. Kb2 {[%emt 0:03:00][%csl LRa2,LRb5]} Nb4 {[%emt 0:00:00]} 31. cxb5 {[%emt 0:00:14]} Rb8 {[%emt 0:00:00]} 32. Nc2 {[%emt 0:00:55]} (32. Kb3 $15 Rxb5 33. Ka4) 32... Nxc2 $17 {[%emt 0:00:00]} ({Of course not} 32... Rxb5 $6 33. Nxb4 axb4 34. Kb3 $11) 33. Kxc2 {[%emt 0:00:01]} Rxb5 {[%emt 0:00:00] KR-KR} 34. Rd7 {[%emt 0:00:49]} Rf5 {[%emt 0:00:00]} 35. f3 {[%emt 0:00:22]} Re5 {[%emt 0:00:00] White must now prevent ...Re2+.} 36. Kd3 {[%emt 0:01:03]} Re7 {[%emt 0:00:00]} (36... Re1 $19 {...Rd1+ is the strong threat.} 37. Ra7 Rd1+ 38. Ke4 Ra1) 37. Rd4 {[%emt 0:01:57]} Ra7 {[%emt 0:00:00]} 38. Ra4 {[%emt 0:00:10]} Ke7 {[%emt 0:00:00]} 39. Kc4 {[%emt 0:00:17]} Kd6 {[%emt 0:00:00]} 40. Kb5 {[%emt 0:00:45] [#] This move loses the game for White.} (40. Kb3 $17 {was worth a try.}) 40... Rb7+ $1 $19 {[%emt 0:00:00]} 41. Kxa5 $2 {[%emt 0:02:29] [#]} (41. Kc4 $19) 41... Ra7+ $1 {[%emt 0:00:00] Black mates.} 42. Kb5 {[%emt 0:00:04]} Rxa4 {[%emt 0:00:00]} 43. Kxa4 {[%emt 0:00:01] K3P-K3P} Kc5 {[%emt 0:00:00]} 44. h4 {[%emt 0:03:20]} f5 {[%emt 0:00:00]} 45. h5 {[%emt 0:00:00]} gxh5 {[%emt 0:00:00]} 46. Kb3 {[%emt 0:00:00]} Kd4 {[%emt 0:00:00]} 47. Kc2 {[%emt 0:00:30]} Ke3 {[%emt 0:00:00]} 48. Kd1 {[%emt 0:00:09]} Kf2 {[%emt 0:00:00] Weighted Error Value: White=0.28 (precise) /Black=0.04 (flawless)} 0-1

[Event "1st Bella Italia International 2022"]
[Site "Lignano"]
[Date "2022.08.20"]
[Round "5.2"]
[White "Sonis, Francesco"]
[Black "Karthik Venkataraman"]
[Result "1-0"]
[ECO "E71"]
[WhiteElo "2543"]
[BlackElo "2483"]
[Annotator "TA"]
[PlyCount "107"]
[EventDate "2022.08.18"]
[EventCountry "ITA"]
[SourceTitle "playchess.com"]
[Source "ChessBase"]
[SourceQuality "1"]
[TimeControl "5400+30"]

{[%evp 9,107,30,63,29,36,33,37,13,54,15,20,12,18,0,0,0,25,11,13,-14,37,23,40,35,33,32,72,37,43,47,50,48,74,0,0,0,0,0,0,-18,0,-11,18,16,18,16,13,0,21,21,17,20,73,79,110,92,198,193,177,117,181,157,180,162,181,125,422,412,398,174,157,157,531,590,597,575,525,502,637,583,893,708,910,902,881,867,1054,977,2089,2029,3530,3011,29982,29982,29982,1500,1454,1411,1310,1257]} 1. c4 {[%emt 0:00:04]} Nf6 {[%emt 0:07:10]} 2. Nc3 {[%emt 0:00:02]} g6 {[%emt 0:01:59]} 3. e4 {[%emt 0:00:04]} d6 {[%emt 0:00:05]} 4. d4 {[%emt 0:00:09][%cal Bd2d4,Bd4d5][%mdl 32]} Bg7 {[%emt 0:00:03]} 5. h3 {[%emt 0:00:06]} e5 {[%emt 0:00:04]} 6. d5 {[%emt 0:00:24] E71: King's Indian: 4 e4 d6 5 h3.} a5 {[%emt 0:00:05]} 7. Be3 {[%emt 0:03:09]} Na6 {[%emt 0:00:05]} 8. g4 {[%emt 0:06:27] White is slightly better.} Nc5 {[%emt 0:00:15]} 9. Bg2 {[%emt 0:00:36]} c6 {[%emt 0:05:06]} 10. Nge2 {[%emt 0:01:02][%cal Bg1e2,Be2c1,Bc1d3][%mdl 32]} cxd5 {[%emt 0:03:01] [#]} 11. cxd5 $146 {[%emt 0:03:21]} ({Predecessor:} 11. exd5 h5 12. g5 Nh7 13. h4 b6 14. Ng3 Bg4 15. Qc2 O-O 16. Nce4 Rc8 17. Nxc5 bxc5 {1-0 (39) Erigaisi,A (2567)-Nenezic,M (2531) Belgrade 2021}) 11... Bd7 {[%emt 0:02:34]} 12. a4 {[%emt 0:05:39] Prevents b5.} h6 {[%emt 0:06:59]} 13. O-O {[%emt 0:02:44]} Rc8 {[%emt 0:00:51]} 14. Nc1 {[%emt 0:06:18]} O-O {[%emt 0:01:50]} (14... h5 $1 $11 15. g5 Nh7) 15. Nd3 {[%emt 0:00:46]} b6 {[%emt 0:00:05]} 16. b4 {[%emt 0:13:17]} axb4 {[%emt 0:14:39]} 17. Nxb4 {[%emt 0:01:34]} Qc7 {[%emt 0:05:26]} 18. Qb1 {[%emt 0:07:16]} Ra8 {[%emt 0:05:20]} 19. Rc1 {[%emt 0:00:06]} Qb7 {[%emt 0:00:25][%cal Rc5a4]} 20. Bf1 {[%emt 0:05:47]} Ra5 {[%emt 0:06:49]} 21. Bxc5 {[%emt 0:16:25]} (21. f3 $16) 21... bxc5 $11 {[%emt 0:02:12]} 22. Nc6 {[%emt 0:00:37]} Bxc6 {[%emt 0:00:08]} 23. dxc6 {[%emt 0:00:03]} Qxc6 {[%emt 0:00:04]} 24. Bb5 {[%emt 0:00:38]} Qc8 {[%emt 0:01:22]} 25. Qd3 {[%emt 0:00:08]} Qd8 {[%emt 0:04:02]} 26. Rd1 {[%emt 0:01:04]} Nh7 {[%emt 0:00:09]} 27. Qxd6 {[%emt 0:01:44]} Qh4 {[%emt 0:00:06]} 28. Qd3 {[%emt 0:01:06]} Ng5 {[%emt 0:00:57]} 29. Kg2 {[%emt 0:00:02]} Ne6 {[%emt 0:03:40]} 30. Qg3 {[%emt 0:01:35]} Qe7 {[%emt 0:09:12]} (30... Qxg3+ $11 {remains equal.} 31. fxg3 Nd4) 31. Rd7 $1 $16 {[%emt 0:02:40]} Qg5 {[%emt 0:01:37]} 32. h4 {[%emt 0:01:19] White is more active.} Nf4+ {[%emt 0:00:05]} (32... Qf4 $16 {was called for.}) 33. Kh2 $18 {[%emt 0:00:08]} Qf6 {[%emt 0:00:04]} 34. Rad1 {[%emt 0:00:11]} (34. Bc4 $1 $18) 34... Qe6 {[%emt 0:01:11]} (34... Qb6 $16) 35. R1d6 $36 {[%emt 0:01:10][%mdl 2048] White is in control.} Qb3 {[%emt 0:00:10]} 36. Nd5 {[%emt 0:00:26] Inhibits Qb4.} Qc2 {[%emt 0:01:58] [#]} 37. Qf3 {[%emt 0:03:18]} ({Resist} 37. Nxf4 exf4 38. Qf3 (38. Qxf4 Rxb5 39. axb5 Be5 $11) 38... c4 $16) (37. Ne7+ $1 $18 Kh8 38. Qe3) 37... Qc1 $2 {[%emt 0:05:21][%mdl 8192]} (37... Ne6 $16 {might work better.}) 38. Ne7+ {[%emt 0:00:25]} Kh7 {[%emt 0:01:26]} 39. Rd1 {[%emt 0:00:05]} (39. h5 $142) 39... Qb2 {[%emt 0:00:09][%cal Oc5c4]} 40. R7d2 {[%emt 0:00:06]} Qb4 {[%emt 0:00:25] Black cannot hold the game after this.} (40... Rxb5 $16 {is more resistant.} 41. Rxb2 (41. axb5 Qxb5 42. Nd5 Ne6 $16) 41... Rxb2) 41. Nc6 $1 {[%emt 0:00:10][%csl LRa5,LRb4]} Rxb5 {[%emt 0:00:06]} 42. Nxb4 {[%emt 0:00:04]} Rxb4 {[%emt 0:00:04]} 43. Ra1 {[%emt 0:00:40]} Ra8 {[%emt 0:00:10]} 44. a5 {[%emt 0:00:13][%cal Ba4a5,Ba5a6][%mdl 32]} Bf6 {[%emt 0:01:15]} 45. a6 {[%emt 0:02:33]} Kg7 {[%emt 0:00:19]} 46. Qc3 {[%emt 0:03:07]} Ne6 {[%emt 0:00:33]} 47. Rb2 {[%emt 0:00:06]} Rxe4 {[%emt 0:00:55]} 48. Qf3 {[%emt 0:00:06]} Rf4 {[%emt 0:00:57]} 49. Qxa8 {[%emt 0:00:04]} e4 {[%emt 0:00:04]} 50. Qb8 {[%emt 0:01:07] White wants to mate with a7.} Rxg4 {[%emt 0:00:35]} 51. a7 {[%emt 0:01:09]} Rxh4+ {[%emt 0:00:53]} 52. Kg2 {[%emt 0:00:08]} (52. Kg1 $142 h5 {[#]} 53. a8=Q $1 Kh6 54. Rb7 Rg4+ 55. Kf1 Ng5 56. Rc1 Ne6 57. Rxf7) 52... Nf4+ {[%emt 0:00:27] [#]} 53. Qxf4 $3 {[%emt 0:00:18][%mdl 512]} Rxf4 {[%emt 0:00:05]} 54. Rba2 {[%emt 0:00:01] Weighted Error Value: White=0.18 (very precise) /Black=0.53} 1-0

[Event "1st Bella Italia International 2022"]
[Site "Lignano"]
[Date "2022.08.20"]
[Round "5.3"]
[White "Ghosh, Diptayan"]
[Black "Bommini Mounika Akshaya"]
[Result "1-0"]
[ECO "D45"]
[WhiteElo "2538"]
[BlackElo "2107"]
[Annotator "TA"]
[PlyCount "114"]
[EventDate "2022.08.18"]
[EventCountry "ITA"]
[SourceTitle "playchess.com"]
[Source "ChessBase"]
[SourceQuality "1"]
[TimeControl "5400+30"]

{[%evp 23,114,0,0,0,0,0,0,0,0,0,0,0,12,12,8,17,14,0,0,0,0,0,0,0,0,0,0,0,0,0,0,0,0,0,0,0,0,0,0,0,0,-11,-2,-20,-14,-16,0,0,0,0,0,0,0,0,9,0,10,8,162,159,140,94,95,94,79,83,86,85,85,90,83,87,87,84,86,81,87,18,67,67,66,67,374,374,508,368,868,794,880,839,770,532,415]} 1. Nf3 {[%emt 0:01:17] RR} d5 {[%emt 0:05:47]} 2. e3 {[%emt 0:00:31]} Nf6 {[%emt 0:00:19]} 3. c4 {[%emt 0:00:10]} e6 {[%emt 0:00:27]} 4. b3 {[%emt 0:02:09]} Bd6 {[%emt 0:01:21]} 5. Bb2 {[%emt 0:00:08]} O-O {[%emt 0:02:06]} 6. Nc3 {[%emt 0:00:18]} c6 {[%emt 0:02:18]} 7. d4 {[%emt 0:03:38]} Nbd7 {[%emt 0:05:19]} 8. Be2 {[%emt 0:00:22]} b6 {[%emt 0:00:20]} 9. O-O {[%emt 0:00:18]} Bb7 {[%emt 0:00:03]} 10. Qc2 {[%emt 0:00:22]} Qe7 {[%emt 0:00:09]} 11. Rad1 {[%emt 0:00:45]} Rad8 {[%emt 0:00:11]} 12. Rfe1 {[%emt 0:02:32]} Rfe8 {[%emt 0:00:06]} 13. e4 {[%emt 0:07:10] D45: Semi-Slav: 5 e3.} dxe4 {[%emt 0:00:38]} 14. Nxe4 {[%emt 0:00:05]} Nxe4 {[%emt 0:04:06]} 15. Qxe4 {[%emt 0:00:14] The position is equal.} Nf6 {[%emt 0:14:31]} 16. Qc2 {[%emt 0:02:27]} Bb4 {[%emt 0:06:29]} 17. Rf1 {[%emt 0:02:13][%cal Oc4c5]} Ba3 {[%emt 0:10:31]} 18. Ne5 {[%emt 0:13:59]} Bxb2 {[%emt 0:01:55]} 19. Qxb2 {[%emt 0:00:04]} c5 {[%emt 0:00:41] [#]} 20. Bf3 $146 {[%emt 0:02:43]} ({Predecessor:} 20. dxc5 Qxc5 21. b4 Qc7 {½-½ (21) Wagner,D (2523)-Bluebaum,M (2571) Cappelle la Grande 2015 EXT 2016 [RR]}) 20... Bxf3 {[%emt 0:01:01]} 21. Nxf3 {[%emt 0:00:04]} cxd4 {[%emt 0:05:52]} 22. Nxd4 {[%emt 0:03:54]} Qc5 {[%emt 0:00:56] Against Nc6} 23. Rfe1 {[%emt 0:03:08]} Rd7 {[%emt 0:01:57] Threatens to win with ...Red8.} 24. Nf3 {[%emt 0:00:44]} Red8 {[%emt 0:01:01]} 25. Rxd7 {[%emt 0:00:17]} Rxd7 {[%emt 0:00:02]} 26. Ne5 {[%emt 0:03:45]} Qb4 {[%emt 0:08:39][%cal Rb4e1]} 27. Qc1 {[%emt 0:02:51]} Rd6 {[%emt 0:01:04]} 28. Nf3 {[%emt 0:07:16]} h6 {[%emt 0:02:13]} 29. g3 {[%emt 0:02:01]} Rd3 {[%emt 0:05:48]} 30. Kg2 {[%emt 0:10:45]} Qd6 {[%emt 0:02:25]} 31. Qc2 {[%emt 0:03:46]} Nd7 {[%emt 0:01:43]} 32. Qe2 {[%emt 0:01:45]} Nc5 {[%emt 0:01:42]} 33. b4 {[%emt 0:04:50]} Nd7 {[%emt 0:02:29]} 34. Kg1 {[%emt 0:01:22]} f6 {[%emt 0:02:57]} 35. Rc1 {[%emt 0:03:03][%cal Oc4c5]} Kf7 {[%emt 0:02:47]} 36. h4 {[%emt 0:04:49]} a5 {[%emt 0:04:36]} 37. c5 {[%emt 0:02:01]} bxc5 {[%emt 0:00:05]} 38. bxc5 {[%emt 0:00:26]} Qd5 {[%emt 0:02:43]} 39. Ne1 {[%emt 0:01:28]} ({Much weaker is} 39. c6 Qxf3 40. Qxf3 Rxf3 $17) 39... Rd2 {[%emt 0:00:35]} 40. Qe3 $36 {[%emt 0:00:05][%mdl 2048] Black must now prevent c6. White fights for an advantage.} Ne5 {[%emt 0:01:22]} (40... Qd4 $11) 41. c6 $1 $18 {[%emt 0:02:37] Strongly threatening c7.} Ng4 {[%emt 0:00:16] [#]} (41... Nxc6 $2 42. Rxc6 $1 {[%mdl 512]} Rd1 43. Rc7+ Kg6 44. Re7 $18) 42. Qc5 {[%emt 0:01:21]} (42. Qa7+ $142 $1 Kg6 43. Qc5 Nxf2 44. Qxd5 Nh3+ 45. Kh1 Nf2+ 46. Kg1 Nh3+ 47. Kh1 Nf2+ 48. Kg2 exd5 49. c7 Ne4+ 50. Kf3) 42... Nxf2 $16 {[%emt 0:01:16][%csl Gf2][%cal Rd5h1]} 43. Qxd5 {[%emt 0:00:39] Chess con chili.} Nh3+ {[%emt 0:00:14]} 44. Kh1 {[%emt 0:00:04]} Nf2+ {[%emt 0:00:40]} 45. Kg2 {[%emt 0:01:49]} exd5 {[%emt 0:00:06][%mdl 4096] Endgame KRN-KRN} 46. c7 {[%emt 0:00:55]} Ne4+ {[%emt 0:00:54]} (46... Nd3+ $2 47. Kf3 (47. Kg1 Nxe1 48. c8=Q Nf3+ 49. Kf1 Nh2+ 50. Kg1 Nf3+ 51. Kf1 Nh2+ 52. Kg1 Nf3+ $11) 47... Nxc1 48. c8=Q $18) 47. Kf3 {[%emt 0:00:38]} Nd6 {[%emt 0:00:38]} 48. c8=Q {[%emt 0:00:07]} Nxc8 {[%emt 0:00:06]} 49. Rxc8 {[%emt 0:00:03]} Rxa2 {[%emt 0:00:04] KRN-KR} 50. Nc2 {[%emt 0:00:06] Prevents Ra3+.} (50. Rc7+ $16 Kf8 51. Nd3) 50... g5 {[%emt 0:00:24]} (50... h5 $11) 51. h5 $14 {[%emt 0:00:34]} f5 $1 {[%emt 0:00:59]} 52. Rc6 {[%emt 0:00:51]} Rb2 $2 {[%emt 0:01:03][%mdl 8192]} (52... a4 $14) 53. Nd4 $18 {[%emt 0:00:14]} g4+ {[%emt 0:00:24]} 54. Ke3 {[%emt 0:00:17]} Rh2 $2 {[%emt 0:00:35]} (54... Rb4 55. Nxf5 Re4+ 56. Kd3 Re5 57. Nxh6+ Kf8 58. Nxg4 Rxh5) 55. Rxh6 {[%emt 0:00:15] White is clearly winning.} a4 {[%emt 0:00:15]} 56. Nxf5 {[%emt 0:01:58]} a3 {[%emt 0:00:05]} 57. Ra6 {[%emt 0:00:09] And now h6 would win.} Rxh5 {[%emt 0:01:47] Weighted Error Value: White=0.14 (very precise) /Black=0.30} 1-0